lending/lending_fUSD_20250808
["ID","MTS","AMOUNT","RATE_DAILY","PERIOD"]
[377912413,1754613092930,-1998.91,0.00020273,2]
[377912414,1754613092940,-1328.2,0.00020273,2]
[377912415,1754613092951,-1087.69,0.00020273,2]
[377912416,1754613092961,-400.0,0.00020273,2]
[377912417,1754613092972,-400.0,0.00020273,2]
[377912418,1754613092982,-1129.91,0.00020273,2]
[377912419,1754613092992,-2952.54,0.00020273,2]
[377912420,1754613093002,-1291.71,0.00020273,2]
[377912421,1754613093014,-507.81,0.00020273,2]
[377912422,1754613093023,-2109.97,0.00020273,2]
[377912423,1754613093033,-780.96,0.00020273,2]
[377912424,1754613093044,-1425.93,0.00020273,2]
[377912425,1754613093054,-921.79,0.00020273,2]
[377912426,1754613093064,-500.0,0.00020273,2]
[377912427,1754613093074,-1165.14,0.00020273,2]
[377912428,1754613093084,-662.71,0.00020273,2]
[377912429,1754613093095,-1164.62,0.00020273,2]
[377912430,1754613093107,-2405.69,0.00020273,2]
[377912431,1754613093117,-620.84,0.00020273,2]
[377912432,1754613093128,-918.26,0.00020273,2]
[377912433,1754613093138,-1258.15,0.00020273,2]
[377912434,1754613093149,-876.19,0.00020273,2]
[377912435,1754613093158,-2947.95,0.00020273,2]
[377912436,1754613093168,-1553.23,0.00020273,2]
[377912437,1754613093178,-478.79,0.00020273,2]
[377912438,1754613093188,-1217.16,0.00020273,2]
[377912439,1754613093198,-2199.42,0.00020273,2]
[377912440,1754613093207,-2212.98,0.00020273,2]
[377912441,1754613093218,-599.75,0.00020273,2]
[377912442,1754613093228,-21934.36,0.00020273,2]
[377912443,1754613093237,-2805.22,0.00020273,2]
[377912444,1754613093247,-400.0,0.00020273,2]
[377912445,1754613093256,-400.0,0.00020273,2]
[377912446,1754613093267,-1718.94,0.00020273,2]
[377912447,1754613093277,-1128.21,0.00020273,2]
[377912448,1754613093286,-454.14,0.00020273,2]
[377912449,1754613093296,-2525.21,0.00020273,2]
[377912450,1754613093306,-913.11,0.00020273,2]
[377912451,1754613093316,-484.16,0.00020273,2]
[377912452,1754613093326,-674.02,0.00020273,2]
[377912453,1754613093337,-1717.22,0.00020273,2]
[377912454,1754613093348,-3589.91,0.00020273,2]
[377912455,1754613093361,-400.0,0.00020273,2]
[377912456,1754613093371,-445.14,0.00020273,2]
[377912457,1754613093382,-520.0,0.00020273,2]
[377912458,1754613093392,-1638.11,0.00020273,2]
[377912459,1754613093403,-1662.56,0.00020273,2]
[377912460,1754613093414,-1890.31,0.00020273,2]
[377912461,1754613093424,-1179.5,0.00020273,2]
[377912462,1754613093435,-820.59,0.00020273,2]
[377912463,1754613093445,-1814.44,0.00020273,2]
[377912464,1754613093455,-400.0,0.00020273,2]
[377912465,1754613093466,-600.51,0.00020273,2]
[377912466,1754613093475,-2569.88,0.00020273,2]
[377912467,1754613093486,-674.63,0.00020273,2]
[377912468,1754613093496,-2338.84,0.00020273,2]
[377912469,1754613093507,-400.0,0.00020273,2]
[377912470,1754613093517,-400.0,0.00020273,2]
[377912471,1754613093527,-1234.92,0.00020273,2]
[377912472,1754613093537,-400.0,0.00020273,2]
[377912473,1754613093547,-5688.95,0.00020273,2]
[377912474,1754613093557,-2335.94,0.00020273,2]
[377912475,1754613093567,-400.0,0.00020273,2]
[377912476,1754613093577,-400.0,0.00020273,2]
[377912477,1754613093588,-862.72,0.00020273,2]
[377912478,1754613093599,-1880.9,0.00020273,2]
[377912479,1754613093611,-1651.16,0.00020273,2]
[377912480,1754613093622,-400.0,0.00020273,2]
[377912481,1754613093632,-480.51,0.00020273,2]
[377912482,1754613093642,-707.51,0.00020273,2]
[377912483,1754613093652,-1525.3,0.00020273,2]
[377912484,1754613093662,-400.0,0.00020273,2]
[377912485,1754613093672,-492.44,0.00020273,2]
[377912486,1754613093682,-1793.18,0.00020273,2]
[377912487,1754613093693,-874.37,0.00020273,2]
[377912488,1754613093704,-400.0,0.00020273,2]
[377912489,1754613093715,-400.0,0.00020273,2]
[377912490,1754613093725,-400.0,0.00020273,2]
[377912491,1754613093736,-226.2770895,0.00020287,2]
[377912492,1754613093747,-2510.51,0.00020295,2]
[377912493,1754613093758,-600.0,0.00020316,2]
[377912494,1754613093769,-292.7,0.00020316,2]
[377912495,1754613093779,-502.25630022,0.00020321,2]
[377912496,1754613093790,-1000.0,0.00020321,2]
[377912497,1754613093800,-206.62084597,0.00020321,2]
[377912498,1754613093811,-150.0,0.0002037,2]
[377912499,1754613093821,-150.0,0.000204,2]
[377912500,1754613093831,-2560.41,0.00020407,2]
[377912501,1754613093843,-160.0,0.00020436,2]
[377912502,1754613093858,-177.05,0.00020461,2]
[377912503,1754613093868,-2467.28,0.00020464,2]
[377912504,1754613093879,-5000.0,0.00020524,2]
[377912505,1754613093891,-400.0,0.00020529,2]
[377912506,1754613093902,-231.71059834,0.00020534,2]
[377912507,1754613093911,-1770.72,0.00020534,2]
[377912508,1754613093921,-2033.74,0.00020534,2]
[377912509,1754613093929,-400.0,0.00020534,2]
[377912510,1754613093939,-1928.95,0.00020534,2]
[377912511,1754613093950,-1964.46,0.00020534,2]
[377912512,1754613093961,-1517.59,0.00020534,2]
[377912513,1754613093971,-2517.35,0.00020534,2]
[377912514,1754613093981,-3417.84,0.00020534,2]
[377912515,1754613093991,-226.7468679,0.00020547,2]
[377912516,1754613094002,-400.0,0.00020547,2]
[377912517,1754613094013,-400.0,0.00020547,2]
[377912518,1754613094023,-413.9,0.00020547,2]
[377912519,1754613094034,-390.74947831,0.00020547,2]
[377912520,1754613094044,-491.72,0.00020547,2]
[377912521,1754613094054,-400.0,0.00020547,2]
[377912522,1754613094064,-1398.87,0.00020547,2]
[377912523,1754613094073,-1031.25,0.00020547,2]
[377912524,1754613094364,-400.0,0.00020547,2]
[377912525,1754613094381,-400.0,0.00020547,2]
[377912526,1754613094391,-565.33,0.00020547,2]
[377912527,1754613094401,-400.0,0.00020547,2]
[377912528,1754613094411,-400.0,0.00020547,2]
[377912529,1754613094421,-400.0,0.00020547,2]
[377912530,1754613094432,-984.93,0.00020547,2]
[377912531,1754613094442,-1073.05,0.00020547,2]
[377912532,1754613094453,-1178.77,0.00020547,2]
[377912533,1754613094463,-400.0,0.00020547,2]
[377912534,1754613094473,-828.34,0.00020547,2]
[377912535,1754613094482,-400.0,0.00020547,2]
[377912536,1754613094492,-400.0,0.00020547,2]
[377912537,1754613094502,-400.0,0.00020547,2]
[377912538,1754613094512,-400.0,0.00020547,2]
[377912539,1754613094522,-400.0,0.00020547,2]
[377912540,1754613094532,-400.0,0.00020547,2]
[377912541,1754613094542,-812.28,0.00020547,2]
[377912542,1754613094553,-927.28,0.00020547,2]
[377912543,1754613094563,-400.0,0.00020547,2]
[377912544,1754613094573,-400.0,0.00020547,2]
[377912545,1754613094583,-400.0,0.00020547,2]
[377912546,1754613094595,-953.96,0.00020547,2]
[377912547,1754613094608,-400.0,0.00020547,2]
[377912548,1754613094619,-400.0,0.00020547,2]
[377912549,1754613094631,-861.71,0.00020547,2]
[377912550,1754613094643,-802.6,0.00020547,2]
[377912551,1754613094655,-400.0,0.00020547,2]
[377912552,1754613094665,-580.75,0.00020547,2]
[377912553,1754613094676,-400.0,0.00020547,2]
[377912554,1754613094686,-400.0,0.00020547,2]
[377912555,1754613094704,-400.0,0.00020547,2]
[377912556,1754613094714,-571.8,0.00020547,2]
[377912557,1754613094724,-400.0,0.00020547,2]
[377912558,1754613094734,-400.0,0.00020547,2]
[377912559,1754613094744,-1017.49,0.00020547,2]
[377912560,1754613094755,-480.71,0.00020547,2]
[377912561,1754613094764,-400.0,0.00020547,2]
[377912562,1754613094774,-403.89,0.00020547,2]
[377912563,1754613094784,-400.0,0.00020547,2]
[377912564,1754613094794,-400.0,0.00020547,2]
[377912565,1754613094803,-1379.73,0.00020547,2]
[377912566,1754613094813,-400.0,0.00020547,2]
[377912567,1754613094823,-1290.36,0.00020547,2]
[377912568,1754613094834,-400.0,0.00020547,2]
[377912569,1754613094845,-400.0,0.00020547,2]
[377912570,1754613094860,-400.0,0.00020547,2]
[377912571,1754613094870,-560.12,0.00020547,2]
[377912572,1754613094881,-400.0,0.00020547,2]
[377912573,1754613094892,-1326.45,0.00020547,2]
[377912574,1754613094903,-1037.58,0.00020547,2]
[377912575,1754613094913,-551.88,0.00020547,2]
[377912576,1754613094923,-400.0,0.00020547,2]
[377912577,1754613094935,-570.53,0.00020547,2]
[377912578,1754613094945,-624.79,0.00020547,2]
[377912579,1754613094956,-459.48,0.00020547,2]
[377912580,1754613094966,-912.6,0.00020547,2]
[377912581,1754613094975,-453.86,0.00020547,2]
[377912582,1754613094985,-845.43,0.00020547,2]
[377912583,1754613094995,-610.33,0.00020547,2]
[377912584,1754613095005,-400.0,0.00020547,2]
[377912585,1754613095014,-1543.29,0.00020547,2]
[377912586,1754613095023,-802.15,0.00020547,2]
[377912587,1754613095034,-405.06,0.00020547,2]
[377912588,1754613095043,-400.0,0.00020547,2]
[377912589,1754613095053,-400.0,0.00020547,2]
[377912590,1754613095063,-1052.0,0.00020547,2]
[377912591,1754613095073,-1340.86,0.00020547,2]
[377912592,1754613095083,-400.0,0.00020547,2]
[377912593,1754613095092,-950.22,0.00020547,2]
[377912594,1754613095102,-903.46,0.00020547,2]
[377912595,1754613095114,-1188.56,0.00020547,2]
[377912596,1754613095124,-400.0,0.00020547,2]
[377912597,1754613095133,-400.0,0.00020547,2]
[377912598,1754613095143,-511.85,0.00020547,2]
[377912599,1754613095153,-291.49560989,0.00020547,2]
[377912600,1754613095163,-502.43,0.00020547,2]
[377912601,1754613095172,-399.99684908,0.00020547,2]
[377912602,1754613095182,-469.08,0.00020547,2]
[377912603,1754613095191,-538.68,0.00020547,2]
[377912604,1754613095201,-431.81,0.00020547,2]
[377912605,1754613095211,-493.41906684,0.00020547,2]
[377912606,1754613095221,-415.03,0.00020547,2]
[377912607,1754613095231,-400.0,0.00020547,2]
[377912608,1754613095240,-400.0,0.00020547,2]
[377912609,1754613095250,-400.0,0.00020547,2]
[377912610,1754613095260,-400.0,0.00020547,2]
[377912611,1754613095270,-613.1,0.00020547,2]
[377912612,1754613095280,-400.0,0.00020547,2]
[377912613,1754613095290,-448.34,0.00020547,2]
[377912614,1754613095299,-400.0,0.00020547,2]
[377912615,1754613095309,-652.84,0.00020547,2]
[377912616,1754613095319,-530.04475665,0.00020547,2]
[377912617,1754613095328,-400.0,0.00020547,2]
[377912618,1754613095338,-400.0,0.00020547,2]
[377912619,1754613095347,-400.0,0.00020547,2]
[377912620,1754613095361,-1054.59,0.00020547,2]
[377912621,1754613095371,-606.31,0.00020547,2]
[377912622,1754613095381,-468.72,0.00020547,2]
[377912623,1754613095391,-400.0,0.00020547,2]
[377912624,1754613095401,-560.03,0.00020547,2]
[377912625,1754613095411,-400.0,0.00020547,2]
[377912626,1754613095420,-1129.63,0.00020547,2]
[377912627,1754613095430,-744.37,0.00020547,2]
[377912628,1754613095439,-771.07,0.00020547,2]
[377912629,1754613095449,-400.0,0.00020547,2]
[377912630,1754613095459,-1372.41,0.00020547,2]
[377912631,1754613095468,-830.78,0.00020547,2]
[377912632,1754613095478,-643.55,0.00020547,2]
[377912633,1754613095488,-1290.29,0.00020547,2]
[377912634,1754613095498,-400.0,0.00020547,2]
[377912635,1754613095508,-400.0,0.00020547,2]
[377912636,1754613095518,-463.32,0.00020547,2]
[377912637,1754613095527,-400.0,0.00020547,2]
[377912638,1754613095537,-400.0,0.00020547,2]
[377912639,1754613095548,-400.0,0.00020547,2]
[377912640,1754613095558,-400.0,0.00020547,2]
[377912641,1754613095568,-400.0,0.00020547,2]
[377912642,1754613095578,-400.0,0.00020547,2]
[377912643,1754613095588,-792.51,0.00020547,2]
[377912644,1754613095599,-400.0,0.00020547,2]
[377912645,1754613095611,-720.13,0.00020547,2]
[377912646,1754613095621,-526.14,0.00020547,2]
[377912647,1754613095630,-690.34,0.00020547,2]
[377912648,1754613095639,-767.24,0.00020547,2]
[377912649,1754613095648,-784.03,0.00020547,2]
[377912650,1754613095658,-619.45,0.00020547,2]
[377912651,1754613095667,-592.46,0.00020547,2]
[377912652,1754613095677,-838.34,0.00020547,2]
[377912653,1754613095687,-400.0,0.00020547,2]
[377912654,1754613095698,-400.0,0.00020547,2]
[377912655,1754613095707,-430.58,0.00020547,2]
[377912656,1754613095716,-400.0,0.00020547,2]
[377912657,1754613095726,-400.0,0.00020547,2]
[377912658,1754613095736,-400.0,0.00020547,2]
[377912659,1754613095746,-400.0,0.00020547,2]
[377912660,1754613095756,-407.69925755,0.00020547,2]
[377912661,1754613095765,-400.0,0.00020547,2]
[377912662,1754613095776,-400.0,0.00020547,2]
[377912663,1754613095786,-400.0,0.00020547,2]
[377912664,1754613095796,-400.0,0.00020547,2]
[377912665,1754613095806,-887.56,0.00020547,2]
[377912666,1754613095816,-400.0,0.00020547,2]
[377912667,1754613095826,-1398.35,0.00020547,2]
[377912668,1754613095835,-1086.27,0.00020547,2]
[377912669,1754613095846,-1137.31,0.00020547,2]
[377912670,1754613095862,-400.0,0.00020547,2]
[377912671,1754613095872,-488.07,0.00020547,2]
[377912672,1754613095882,-400.0,0.00020547,2]
[377912673,1754613095893,-433.15,0.00020547,2]
[377912674,1754613095903,-969.77,0.00020547,2]
[377912675,1754613095914,-644.96,0.00020547,2]
[377912676,1754613095926,-711.54,0.00020547,2]
[377912677,1754613095937,-745.61,0.00020547,2]
[377912678,1754613095948,-615.2,0.00020547,2]
[377912679,1754613095960,-1326.15,0.00020547,2]
[377912680,1754613095971,-580.71,0.00020547,2]
[377912681,1754613095981,-400.0,0.00020547,2]
[377912682,1754613095992,-400.0,0.00020547,2]
[377912683,1754613096004,-777.93,0.00020547,2]
[377912684,1754613096014,-400.0,0.00020547,2]
[377912685,1754613096026,-533.67,0.00020547,2]
[377912686,1754613096036,-343.77810198,0.00020547,2]
[377912687,1754613096047,-1146.04,0.00020547,2]
[377912688,1754613096057,-400.0,0.00020547,2]
[377912689,1754613096068,-1764.53,0.00020547,2]
[377912690,1754613096077,-214.43481687,0.00020547,2]
[377912691,1754613096087,-400.0,0.00020547,2]
[377912692,1754613096096,-678.35,0.00020547,2]
[377912693,1754613096109,-595.92,0.00020547,2]
[377912694,1754613096120,-1128.98,0.00020547,2]
[377912695,1754613096130,-400.0,0.00020547,2]
[377912696,1754613096140,-400.0,0.00020547,2]
[377912697,1754613096149,-1058.02,0.00020547,2]
[377912698,1754613096160,-467.91,0.00020547,2]
[377912699,1754613096170,-460.25,0.00020547,2]
[377912700,1754613096179,-498.62,0.00020547,2]
[377912701,1754613096189,-684.85,0.00020547,2]
[377912702,1754613096199,-400.0,0.00020547,2]
[377912703,1754613096209,-1822.08,0.00020547,2]
[377912704,1754613096218,-519.11,0.00020547,2]
[377912705,1754613096228,-834.5,0.00020547,2]
[377912706,1754613096239,-400.0,0.00020547,2]
[377912707,1754613096250,-400.0,0.00020547,2]
[377912708,1754613096260,-400.0,0.00020547,2]
[377912709,1754613096270,-400.0,0.00020547,2]
[377912710,1754613096280,-400.0,0.00020547,2]
[377912711,1754613096290,-431.49,0.00020547,2]
[377912712,1754613096299,-400.0,0.00020547,2]
[377912713,1754613096309,-400.0,0.00020547,2]
[377912714,1754613096319,-756.51,0.00020547,2]
[377912715,1754613096332,-474.3,0.00020547,2]
[377912716,1754613096342,-400.0,0.00020547,2]
[377912717,1754613096352,-753.02,0.00020547,2]
[377912718,1754613096367,-400.0,0.00020547,2]
[377912719,1754613096376,-400.0,0.00020547,2]
[377912720,1754613096386,-530.37,0.00020547,2]
[377912721,1754613096396,-1312.14,0.00020547,2]
[377912722,1754613096407,-400.0,0.00020547,2]
[377912723,1754613096417,-664.1,0.00020547,2]
[377912724,1754613096427,-723.03,0.00020547,2]
[377912725,1754613096437,-488.75,0.00020547,2]
[377912726,1754613096447,-400.0,0.00020547,2]
[377912727,1754613096457,-753.14,0.00020547,2]
[377912728,1754613096467,-400.0,0.00020547,2]
[377912729,1754613096476,-481.93,0.00020547,2]
[377912730,1754613096485,-1362.2,0.00020547,2]
[377912731,1754613096496,-681.29,0.00020547,2]
[377912732,1754613096506,-394.33164858,0.00020547,2]
[377912733,1754613096515,-1202.92,0.00020547,2]
[377912734,1754613096525,-408.53961874,0.00020547,2]
[377912735,1754613096535,-400.0,0.00020547,2]
[377912736,1754613096544,-908.09,0.00020547,2]
[377912737,1754613096555,-1356.82,0.00020547,2]
[377912738,1754613096565,-400.0,0.00020547,2]
[377912739,1754613096574,-642.93,0.00020547,2]
[377912740,1754613096584,-404.31947363,0.00020547,2]
[377912741,1754613096595,-400.0,0.00020547,2]
[377912742,1754613096607,-558.14,0.00020547,2]
[377912743,1754613096617,-400.0,0.00020547,2]
[377912744,1754613096627,-473.3,0.00020547,2]
[377912745,1754613096636,-857.38,0.00020547,2]
[377912746,1754613096646,-600.87,0.00020547,2]
[377912747,1754613096656,-1113.28,0.00020547,2]
[377912748,1754613096665,-400.0,0.00020547,2]
[377912749,1754613096675,-1063.89,0.00020547,2]
[377912750,1754613096684,-766.74,0.00020547,2]
[377912751,1754613096694,-702.23,0.00020547,2]
[377912752,1754613096703,-400.0,0.00020547,2]
[377912753,1754613096713,-593.88,0.00020547,2]
[377912754,1754613096724,-697.81,0.00020547,2]
[377912755,1754613096733,-1070.57,0.00020547,2]
[377912756,1754613096744,-565.06,0.00020547,2]
[377912757,1754613096756,-1013.85,0.00020547,2]
[377912758,1754613096766,-835.59,0.00020547,2]
[377912759,1754613096776,-787.56,0.00020547,2]
[377912760,1754613096786,-805.74,0.00020547,2]
[377912761,1754613096796,-714.37,0.00020547,2]
[377912762,1754613096806,-400.0,0.00020547,2]
[377912763,1754613096819,-400.0,0.00020547,2]
[377912764,1754613096830,-400.0,0.00020547,2]
[377912765,1754613096840,-446.94,0.00020547,2]
[377912766,1754613096851,-400.0,0.00020547,2]
[377912767,1754613096863,-518.84,0.00020547,2]
[377912768,1754613096873,-634.1,0.00020547,2]
[377912769,1754613096883,-997.03,0.00020547,2]
[377912770,1754613096894,-668.96,0.00020547,2]
[377912771,1754613096904,-400.0,0.00020547,2]
[377912772,1754613096913,-823.13,0.00020547,2]
[377912773,1754613096923,-219.13305591,0.00020547,2]
[377912774,1754613096934,-1310.15,0.00020547,2]
[377912775,1754613096944,-602.12,0.00020547,2]
[377912776,1754613096953,-542.82,0.00020547,2]
[377912777,1754613096963,-539.85,0.00020547,2]
[377912778,1754613096972,-1520.38,0.00020547,2]
[377912779,1754613096982,-677.81,0.00020547,2]
[377912780,1754613096992,-400.0,0.00020547,2]
[377912781,1754613097002,-1166.4,0.00020547,2]
[377912782,1754613097011,-400.0,0.00020547,2]
[377912783,1754613097021,-400.0,0.00020547,2]
[377912784,1754613097030,-400.0,0.00020547,2]
[377912785,1754613097040,-440.74,0.00020547,2]
[377912786,1754613097049,-400.0,0.00020547,2]
[377912787,1754613097059,-400.0,0.00020547,2]
[377912788,1754613097069,-1322.15,0.00020547,2]
[377912789,1754613097079,-400.0,0.00020547,2]
[377912790,1754613097088,-400.0,0.00020547,2]
[377912791,1754613097098,-400.0,0.00020547,2]
[377912792,1754613097110,-400.0,0.00020547,2]
[377912793,1754613097120,-439.53,0.00020547,2]
[377912794,1754613097129,-1225.17,0.00020547,2]
[377912795,1754613097139,-729.31,0.00020547,2]
[377912796,1754613097148,-455.12,0.00020547,2]
[377912797,1754613097158,-400.0,0.00020547,2]
[377912798,1754613097167,-1460.14,0.00020547,2]
[377912799,1754613097179,-400.0,0.00020547,2]
[377912800,1754613097196,-400.0,0.00020547,2]
[377912801,1754613097210,-400.0,0.00020547,2]
[377912802,1754613097222,-535.87,0.00020547,2]
[377912803,1754613097237,-965.56,0.00020547,2]
[377912804,1754613097252,-400.0,0.00020547,2]
[377912805,1754613097267,-400.0,0.00020547,2]
[377912806,1754613097281,-400.0,0.00020547,2]
[377912807,1754613097294,-400.0,0.00020547,2]
[377912808,1754613097305,-400.0,0.00020547,2]
[377912809,1754613097320,-1112.82,0.00020547,2]
[377912810,1754613097334,-473.14,0.00020547,2]
[377912811,1754613097349,-1239.98,0.00020547,2]
[377912812,1754613097366,-400.0,0.00020547,2]
[377912813,1754613097380,-592.4,0.00020547,2]
[377912814,1754613097395,-546.56,0.00020547,2]
[377912815,1754613097411,-400.0,0.00020547,2]
[377912816,1754613097424,-400.0,0.00020547,2]
[377912817,1754613097438,-1121.49,0.00020547,2]
[377912818,1754613097453,-412.93,0.00020547,2]
[377912819,1754613097468,-400.0,0.00020547,2]
[377912820,1754613097480,-1332.23,0.00020547,2]
[377912821,1754613097494,-2373.45,0.00020547,2]
[377912822,1754613097505,-867.66,0.00020547,2]
[377912823,1754613097518,-400.0,0.00020547,2]
[377912824,1754613097535,-1921.83,0.00020547,2]
[377912825,1754613097547,-400.0,0.00020547,2]
[377912826,1754613097560,-400.0,0.00020547,2]
[377912827,1754613097572,-477.33,0.00020547,2]
[377912828,1754613097589,-400.0,0.00020547,2]
[377912829,1754613097605,-586.09,0.00020547,2]
[377912830,1754613097617,-633.66,0.00020547,2]
[377912831,1754613097632,-400.0,0.00020547,2]
[377912832,1754613097645,-400.0,0.00020547,2]
[377912833,1754613097660,-434.62,0.00020547,2]
[377912834,1754613097672,-400.0,0.00020547,2]
[377912835,1754613097685,-1031.22,0.00020547,2]
[377912836,1754613097698,-400.0,0.00020547,2]
[377912837,1754613097711,-591.29,0.00020547,2]
[377912838,1754613097724,-1239.8,0.00020547,2]
[377912839,1754613097738,-419.72,0.00020547,2]
[377912840,1754613097751,-765.3,0.00020547,2]
[377912841,1754613097764,-433.91,0.00020547,2]
[377912842,1754613097777,-1091.91,0.00020547,2]
[377912843,1754613097790,-718.67,0.00020547,2]
[377912844,1754613097803,-400.0,0.00020547,2]
[377912845,1754613097816,-400.0,0.00020547,2]
[377912846,1754613097829,-798.23,0.00020547,2]
[377912847,1754613097841,-942.73,0.00020547,2]
[377912848,1754613097858,-400.0,0.00020547,2]
[377912849,1754613097871,-549.44,0.00020547,2]
[377912850,1754613097884,-655.59,0.00020547,2]
[377912851,1754613097896,-706.48,0.00020547,2]
[377912852,1754613097909,-1153.34,0.00020547,2]
[377912853,1754613097922,-549.94,0.00020547,2]
[377912854,1754613097935,-1177.75,0.00020547,2]
[377912855,1754613097949,-560.12,0.00020547,2]
[377912856,1754613097962,-472.38,0.00020547,2]
[377912857,1754613097975,-819.45,0.00020547,2]
[377912858,1754613097988,-895.98,0.00020547,2]
[377912859,1754613098001,-804.91,0.00020547,2]
[377912860,1754613098014,-400.0,0.00020547,2]
[377912861,1754613098027,-400.0,0.00020547,2]
[377912862,1754613098040,-638.56,0.00020547,2]
[377912863,1754613098052,-1000.0,0.00020547,2]
[377912864,1754613098065,-1258.89,0.00020547,2]
[377912865,1754613098077,-352.152162,0.00020547,2]
[377912866,1754613098089,-352.152162,0.00020547,2]
[377912867,1754613098101,-593.81,0.00020547,2]
[377912868,1754613098116,-420.834801,0.00020547,2]
[377912869,1754613098129,-420.834801,0.00020547,2]
[377912870,1754613098141,-400.0,0.00020547,2]
[377912871,1754613098153,-400.0,0.00020547,2]
[377912872,1754613098166,-1287.29,0.00020547,2]
[377912873,1754613098179,-622.14,0.00020547,2]
[377912874,1754613098191,-400.0,0.00020547,2]
[377912875,1754613098204,-400.0,0.00020547,2]
[377912876,1754613098217,-1105.48,0.00020547,2]
[377912877,1754613098230,-1707.57,0.00020547,2]
[377912878,1754613098241,-1063.27,0.00020547,2]
[377912879,1754613098253,-1515.17,0.00020547,2]
[377912880,1754613098266,-1621.03,0.00020547,2]
[377912881,1754613098278,-400.0,0.00020547,2]
[377912882,1754613098291,-877.01,0.00020547,2]
[377912883,1754613098304,-400.0,0.00020547,2]
[377912884,1754613098316,-577.01,0.00020547,2]
[377912885,1754613098328,-400.0,0.00020547,2]
[377912886,1754613098340,-400.0,0.00020547,2]
[377912887,1754613098352,-400.0,0.00020547,2]
[377912888,1754613098367,-400.0,0.00020547,2]
[377912889,1754613098379,-1622.23,0.00020547,2]
[377912890,1754613098391,-400.0,0.00020547,2]
[377912891,1754613098404,-1480.91,0.00020547,2]
[377912892,1754613098416,-400.0,0.00020547,2]
[377912893,1754613098429,-981.54,0.00020547,2]
[377912894,1754613098442,-546.97248314,0.00020547,2]
[377912895,1754613098454,-400.0,0.00020547,2]
[377912896,1754613098467,-1040.41,0.00020547,2]
[377912897,1754613098479,-400.0,0.00020547,2]
[377912898,1754613098492,-400.0,0.00020547,2]
[377912899,1754613098504,-246.791616,0.00020547,2]
[377912900,1754613098516,-246.791616,0.00020547,2]
[377912901,1754613098528,-400.0,0.00020547,2]
[377912902,1754613098541,-447.12,0.00020547,2]
[377912903,1754613098552,-1390.26,0.00020547,2]
[377912904,1754613098565,-1312.79,0.00020547,2]
[377912905,1754613098577,-446.5,0.00020547,2]
[377912906,1754613098589,-1460.09,0.00020547,2]
[377912907,1754613098602,-184.35,0.00020547,2]
[377912908,1754613098617,-806.42,0.00020547,2]
[377912909,1754613098629,-680.12,0.00020547,2]
[377912910,1754613098642,-783.24,0.00020547,2]
[377912911,1754613098655,-998.91,0.00020547,2]
[377912912,1754613098667,-400.0,0.00020547,2]